[Event "II Duchamp Open 2018-U2200"]
[Site "Rio de Janeiro"]
[Date "2018.11.20"]
[Round "5"]
[White "Morais, Wagner Soares De"]
[Black "Sampaio, Andre Luiz"]
[Result "0-1"]
[ECO "E80"]
[WhiteElo "1826"]
[BlackElo "1700"]
[Annotator "NA RC"]
[PlyCount "115"]
[EventDate "2018.11.14"]
[EventType "swiss"]
[EventCountry "BRA"]
[SourceTitle "playchess.com"]
[Source "ChessBase"]
[SourceQuality "1"]
[TimeControl "5400+30"]

{[%evp 8,112,43,38,52,43,56,62,59,87,61,28,69,35,64,31,20,52,27,31,88,83,71,52,92,12,26,19,25,18,14,8,24,19,8,0,0,0,0,-77,-77,-137,-64,-65,-54,-70,-56,-52,0,-252,0,-76,0,-59,0,0,0,-64,-74,-79,-84,-96,-90,-95,-71,-72,32767,32767,32767,-109,-30,32767,32767,-53,32767,32767,32767,68,32767,79,85,85,96,87,32767,208,182,178,192,206,204,216,32767,32767,32767,32767,32767,32767,551,32767,683,881,763,1002,914,1038,1062]} 1. e4 {[%emt 0:29:40]} d6 {[%emt 0:29:55]} 2. d4 {[%emt 0:00:34]} Nf6 {[%emt 0:00:10]} 3. f3 {[%emt 0:00:15]} g6 {[%emt 0:00:48]} 4. c4 {[%emt 0:00:06]} Bg7 {[%emt 0:00:32] LiveBook: 838 Games} 5. Nc3 {[%emt 0:00:06]} c6 {[%emt 0:00:29]} 6. Be3 {[%emt 0:00:09]} Na6 {[%emt 0:00:34]} 7. Qd2 {[%emt 0:00:20]} O-O {[%emt 0:01:57]} 8. Bd3 {[%emt 0:06:02] E81: King's Indian: Sämisch: 6th move deviations (including 6 Be3 c6)} e5 {[%emt 0:00:52]} 9. d5 {[%emt 0:01:19]} Nd7 {[%emt 0:02:55]} (9... Nh5 10. Nge2 f5 11. exf5 gxf5 12. O-O Bd7 13. dxc6 bxc6 14. Rad1 Be6 15. Bc2 Bxc4 16. Qxd6 Qxd6 17. Rxd6 {½-½ (24) Balogh,T (2334)-Gazik,I (2299) Slovakia 2016}) 10. g4 $146 {[%emt 0:04:52]} ({Predecessor:} 10. dxc6 bxc6 11. Rd1 f5 12. Bg5 Bf6 13. Nh3 f4 14. Bxf6 Rxf6 15. Nf2 Nf8 16. a3 Nc5 {1-0 (25) Orozco Santos,F-Ramirez Florez,E Caldas 2011}) 10... Nb4 {[%emt 0:01:16]} 11. Bb1 {[%emt 0:00:33]} cxd5 {[%emt 0:00:36]} 12. cxd5 {[%emt 0:00:22]} Nc5 {[%emt 0:01:57]} 13. Nge2 {[%emt 0:00:49]} f5 {[%emt 0:00:40]} 14. gxf5 {[%emt 0:00:22]} gxf5 {[%emt 0:00:15]} 15. h4 {[%emt 0:03:04]} f4 {[%emt 0:02:17]} (15... Nba6 $14) 16. Bf2 {[%emt 0:00:29]} (16. Bxc5 $16 dxc5 17. a3) 16... Bd7 {[%emt 0:00:51]} 17. Nc1 {[%emt 0:00:14]} Rc8 {[%emt 0:01:30]} 18. a3 $1 {[%emt 0:00:12]} Nba6 {[%emt 0:01:04]} 19. Bc2 {[%emt 0:00:26]} b5 {[%emt 0:01:18]} 20. N1a2 {[%emt 0:06:40]} Qc7 {[%emt 0:02:40]} 21. b4 {[%emt 0:05:13]} Na4 {[%emt 0:04:11]} 22. Bxa4 {[%emt 0:00:22]} bxa4 {[%emt 0:00:15]} 23. O-O-O {[%emt 0:01:03]} (23. Rb1 $11 {keeps the balance.}) 23... Qc4 {[%emt 0:03:38]} 24. Qb2 {[%emt 0:01:15]} ({White should play} 24. Kb1) 24... Rc7 {[%emt 0:03:13]} 25. Kb1 {[%emt 0:01:09]} Qb3 {[%emt 0:02:13]} 26. Rc1 {[%emt 0:00:37]} Rfc8 {[%emt 0:00:57]} 27. Rc2 $11 {[%emt 0:03:46]} Bb5 {[%emt 0:05:50]} (27... Nb8 $15) 28. Rd1 $2 {[%emt 0:01:40] [#]} (28. Nc1 $1 $11 Bd3 29. Nxb3 axb3 {[%mdl 64] Pin} 30. Be1 (30. Qxb3 $2 Rxc3 31. Qxc3 Rxc3 $19 {[%mdl 64] Pin}) 30... bxc2+ 31. Kc1) 28... Bd7 $2 {[%emt 0:03:21]} (28... Rxc3 $1 $19 {[%mdl 512]} 29. Nxc3 {[#]} Rxc3 $1 {[%mdl 576] Remove Defender} 30. Rxc3 Qxd1+ 31. Ka2 Bd3 32. Bxa7 Qxf3) 29. Be1 {[%emt 0:00:42]} Qc4 {[%emt 0:00:58]} ({Better is} 29... Rc4 $15) 30. Nc1 $11 {[%emt 0:04:41]} Qf1 {[%emt 0:05:15]} 31. Rf2 $1 {[%emt 0:10:32]} Qc4 {[%emt 0:01:22]} 32. Qa2 {[%emt 0:00:29]} Kf7 {[%emt 0:04:27]} 33. Qxc4 {[%emt 0:00:41]} Rxc4 {[%emt 0:00:09]} 34. N1a2 {[%emt 0:00:19]} Bf6 {[%emt 0:00:33]} 35. Rh2 {[%emt 0:00:25]} Rg8 {[%emt 0:00:52]} 36. Bf2 {[%emt 0:00:37]} Rc7 {[%emt 0:04:16]} 37. Rc1 {[%emt 0:00:15]} Rgc8 {[%emt 0:00:27]} 38. Ne2 {[%emt 0:00:47]} Bb5 {[%emt 0:01:33]} (38... Rxc1+ $17 39. Naxc1 Nc7) 39. Rxc7+ {[%emt 0:00:43]} Rxc7 {[%emt 0:00:07]} 40. Nac3 {[%emt 0:01:13]} Bd3+ {[%emt 0:01:05]} 41. Kb2 {[%emt 0:00:24]} Nb8 {[%emt 0:01:12]} 42. Nc1 {[%emt 0:00:33]} Bf1 {[%emt 0:01:02]} 43. Nxa4 {[%emt 0:00:26]} Nd7 {[%emt 0:00:29]} 44. Nc3 {[%emt 0:02:43]} Bd8 {[%emt 0:00:32]} 45. Nb3 {[%emt 0:00:51]} Rb7 {[%emt 0:01:42] [#]} 46. Kc2 $1 {[%emt 0:01:43]} Nf6 {[%emt 0:00:21]} 47. Nd2 {[%emt 0:00:18]} Ba6 {[%emt 0:01:42]} 48. Kb3 {[%emt 0:01:12]} Bd3 {[%emt 0:00:42]} 49. Nc4 {[%emt 0:01:18]} Ke7 {[%emt 0:01:30]} 50. Rg2 {[%emt 0:00:24]} Bxc4+ {[%emt 0:01:09]} 51. Kxc4 {[%emt 0:00:19]} Rc7+ {[%emt 0:00:22]} 52. Kb3 {[%emt 0:00:14]} Kf7 {[%emt 0:00:08]} (52... a6 $142 53. Rg7+ Ke8 54. Rxc7 Bxc7) 53. Nb5 {[%emt 0:00:35]} Rd7 {[%emt 0:03:09]} 54. Nxa7 {[%emt 0:00:10]} Nh5 {[%emt 0:00:09]} 55. Nc6 {[%emt 0:00:16]} Bf6 {[%emt 0:01:33]} 56. a4 {[%emt 0:00:22]} Ng3 $18 {[%emt 0:00:25]} 57. Bxg3 {[%emt 0:04:25]} fxg3 {[%emt 0:00:07]} 58. Rxg3 {[%emt 0:00:06]} 0-1